bitfinex/quotes_SOLUSD_20220129
["timestamp","ask_amount","ask_price","bid_price","bid_amount"]
[1643465904169,1.42150426,97.699,97.65,6.0]
[1643465904467,1.42150426,97.699,97.651,6.25]
[1643465904668,1.42150426,97.7,97.651,6.25]
[1643465904868,1.42150426,97.7,97.651,8.74691007]
[1643465905268,1.42150426,97.701,97.651,8.74691007]
[1643465905671,1.42150426,97.711,97.66,14.72]
[1643465905868,1.42150426,97.723,97.661,43.65565465]
[1643465906069,1.42150426,97.723,97.671,6.0]
[1643465906268,4.91479911,97.75,97.672,0.25]
[1643465906269,1.42150426,97.728,97.672,0.25]
[1643465906472,1.42150426,97.734,97.672,0.25]
[1643465906670,1.42150426,97.736,97.681,41.63258105]
[1643465906870,1.42150426,97.739,97.69,14.72]
[1643465907071,2.08085977,97.75,97.69,14.72]
[1643465907072,1.42150426,97.74,97.69,14.72]
[1643465907271,1.42150426,97.74,97.691,0.25]
[1643465907471,1.42150426,97.744,97.7,6.0]
[1643465907674,1.42150426,97.746,97.7,6.0]
[1643465908074,1.42150426,97.746,97.701,0.25]
[1643465908372,1.42150426,97.745,97.701,0.25]
[1643465908772,2.08085977,97.75,97.701,0.25]
[1643465909375,0.25,97.749,97.701,0.25]
[1643465909974,0.25,97.749,97.69,14.72]
[1643465909975,0.25,97.749,97.691,0.25]
[1643465910577,2.08085977,97.75,97.7,6.0]
[1643465910781,2.08085977,97.75,97.701,0.25]
[1643465910977,2.08085977,97.75,97.692,2.51328196]
[1643465910978,6.0,97.74,97.692,2.51328196]
[1643465911176,6.0,97.74,97.69,14.72]
[1643465911177,0.25,97.739,97.69,14.72]
[1643465911377,0.25,97.739,97.691,0.25]
[1643465911582,2.08085977,97.75,97.691,2.76328196]
[1643465911778,0.25,97.749,97.691,2.76328196]
[1643465912178,0.25,97.749,97.691,0.25]
[1643465912378,6.0,97.74,97.691,0.25]
[1643465912579,6.0,97.74,97.69,14.72]
[1643465913079,0.25,97.739,97.69,14.72]
[1643465913477,6.0,97.74,97.691,0.25]
[1643465914080,6.0,97.74,97.69,14.72]
[1643465914280,6.0,97.74,97.67,14.72]
[1643465914678,6.0,97.74,97.643,2.51328196]
[1643465914878,0.25,97.739,97.65,14.72]
[1643465915078,48.2749,97.739,97.64,14.72]
[1643465915479,6.0,97.729,97.641,2.51328196]
[1643465915879,0.25,97.728,97.651,6.0]
[1643465916081,0.25,97.728,97.65,65.59121296]
[1643465916282,0.25,97.749,97.651,102.05]
[1643465916484,1.42150426,97.766,97.652,25.27378196]
[1643465916685,49.23180426,97.776,97.661,101.8]
[1643465916883,49.23180426,97.776,97.67,14.72]
[1643465917082,47.8103,97.776,97.67,14.72]
[1643465917382,1.42150426,97.768,97.671,0.25]
[1643465917586,6.0,97.758,97.68,6.0]
[1643465917781,23.942,97.757,97.69,14.72]
[1643465917982,6.0,97.747,97.69,14.72]
[1643465918781,6.0,97.747,97.691,0.25]
[1643465919185,0.25,97.746,97.691,0.25]
[1643465920182,0.25,97.746,97.69,14.72]
[1643465920783,0.25,97.746,97.691,0.25]
[1643465921182,0.25,97.756,97.692,2.51328196]
[1643465921383,0.25,97.756,97.7,6.0]
[1643465921581,0.25,97.756,97.702,6.0]
[1643465921784,0.25,97.756,97.703,0.25]
[1643465922883,0.25,97.756,97.69,14.72]
[1643465923082,0.25,97.756,97.703,0.25]
[1643465923286,0.25,97.769,97.703,0.25]
[1643465923483,6.0,97.77,97.69,14.72]
[1643465923484,6.0,97.765,97.69,14.72]
[1643465923683,6.0,97.765,97.692,0.25]
[1643465924287,6.0,97.771,97.692,0.25]
[1643465924484,24.8779,97.77,97.692,0.25]
[1643465924682,24.8779,97.77,97.69,14.72]
[1643465924883,6.0,97.76,97.69,14.72]
[1643465925282,0.25,97.759,97.69,14.72]
[1643465925984,6.0,97.757,97.69,14.72]
[1643465926184,6.0,97.757,97.691,0.25]
[1643465926384,29.7961,97.756,97.69,14.72]
[1643465926586,6.0,97.746,97.69,14.72]
[1643465926789,0.25,97.745,97.69,14.72]
[1643465926986,0.25,97.745,97.651,24.598]
[1643465927187,6.0,97.746,97.653,2.51328196]
[1643465927391,6.0,97.746,97.654,0.25]
[1643465927591,6.0,97.745,97.654,0.25]
[1643465927787,24.0547,97.744,97.655,2.51328196]
[1643465927988,6.0,97.734,97.67,14.72]
[1643465928390,6.0,97.734,97.671,0.25]
[1643465930895,6.0,97.734,97.67,14.72]
[1643465931094,6.0,97.734,97.671,0.25]
[1643465932297,0.25,97.733,97.671,0.25]
[1643465932898,1.67150426,97.733,97.671,0.25]
[1643465933097,6.0,97.723,97.671,0.25]
[1643465933298,0.25,97.722,97.671,0.25]
[1643465933496,6.0,97.723,97.671,0.25]
[1643465934098,6.0,97.722,97.671,0.25]
[1643465934298,24.2055,97.732,97.671,0.25]
[1643465934505,24.2055,97.732,97.671,2.76317339]
[1643465934701,1.42150426,97.737,97.671,2.76317339]
[1643465934903,1.42150426,97.735,97.671,2.76317339]
[1643465935102,6.0,97.727,97.671,2.76317339]
[1643465935521,1.42150426,97.735,97.672,40.00990267]
[1643465935713,1.42150426,97.735,97.681,6.0]
[1643465936007,1.42150426,97.732,97.69,14.72]
[1643465936208,1.42150426,97.746,97.7,6.0]
[1643465936407,1.42150426,97.751,97.71,14.72]
[1643465936807,1.42150426,97.742,97.71,14.72]
[1643465937010,6.0,97.732,97.69,14.72]
[1643465937206,6.0,97.732,97.692,0.25]
[1643465937407,1.42150426,97.738,97.692,0.25]
[1643465937645,1.42150426,97.74,97.692,0.25]
[1643465938248,1.42150426,97.74,97.691,0.25]
[1643465938843,1.42150426,97.741,97.691,0.25]
[1643465939042,6.0,97.731,97.691,0.25]
[1643465939645,6.0,97.73,97.691,0.25]
[1643465939942,1.42150426,97.739,97.691,0.25]
[1643465940142,2.83393934,97.767,97.691,0.25]
[1643465940143,1.42150426,97.74,97.691,0.25]
[1643465940842,6.0,97.73,97.691,0.25]
[1643465941042,1.42150426,97.74,97.691,0.25]
[1643465941243,1.42150426,97.739,97.691,0.25]
[1643465941842,1.42150426,97.739,97.69,14.72]
[1643465941843,0.25,97.738,97.69,14.72]
[1643465942044,6.0,97.729,97.66,14.72]
[1643465942247,0.25,97.728,97.643,1.38300638]
[1643465942445,1.42150426,97.715,97.64,14.72]
[1643465942647,1.42150426,97.719,97.644,2.51317339]
[1643465942845,6.0,97.705,97.644,2.51317339]
[1643465943047,0.25,97.714,97.644,2.51317339]
[1643465943246,1.42150426,97.72,97.654,6.0]
[1643465943447,1.42150426,97.728,97.66,14.72]
[1643465943848,1.42150426,97.731,97.661,2.76317339]
[1643465944245,6.0,97.721,97.662,2.5079054]
[1643465944648,1.42150426,97.73,97.663,0.25]
[1643465944851,6.0,97.72,97.663,0.25]
[1643465945145,6.0,97.72,97.664,2.5079054]
[1643465945547,6.0,97.716,97.665,0.25]
[1643465945850,1.42150426,97.724,97.671,35.27156513]
[1643465946051,1.42150426,97.725,97.671,35.27156513]
[1643465946252,0.25,97.723,97.672,0.25]
[1643465947249,6.0,97.715,97.671,0.25]
[1643465947451,6.0,97.715,97.67,14.72]
[1643465947652,6.0,97.715,97.672,2.5079054]
[1643465947850,6.0,97.715,97.673,0.25]
[1643465948052,6.0,97.714,97.673,0.25]
[1643465948252,0.25,97.713,97.67,14.72]
[1643465948650,6.0,97.712,97.67,14.72]
[1643465948850,6.0,97.708,97.67,14.72]
[1643465949053,6.0,97.707,97.67,14.72]
[1643465949252,0.25,97.706,97.67,14.72]
[1643465949956,6.0,97.705,97.67,14.72]
[1643465950355,0.25,97.704,97.67,14.72]
[1643465951355,0.25,97.706,97.67,14.72]
[1643465951757,6.0,97.707,97.67,14.72]
[1643465952560,6.0,97.709,97.67,14.72]
[1643465953356,6.0,97.708,97.67,14.72]
[1643465954363,0.25,97.707,97.67,14.72]
[1643465954564,6.0,97.705,97.67,14.72]
[1643465955263,1.42150426,97.719,97.671,0.25]
[1643465955464,6.0,97.71,97.671,0.25]
[1643465955665,0.25,97.718,97.671,0.25]
[1643465955867,6.0,97.712,97.67,14.72]
[1643465956063,0.25,97.72,97.67,14.72]
[1643465956064,6.0,97.711,97.67,14.72]
[1643465956264,6.25,97.711,97.67,14.72]
[1643465956691,6.0,97.708,97.67,14.72]
[1643465957393,6.0,97.709,97.67,14.72]
[1643465957601,6.0,97.711,97.67,14.72]
[1643465957792,0.25,97.71,97.67,14.72]
[1643465958396,6.0,97.708,97.64,14.72]
[1643465958595,6.0,97.702,97.65,6.0]
[1643465958797,6.0,97.697,97.644,0.25]
[1643465958996,6.0,97.697,97.65,6.0]
[1643465959201,0.25,97.696,97.644,0.25]
[1643465959798,0.25,97.696,97.641,0.25]
[1643465960602,6.25,97.696,97.641,0.25]
[1643465960802,24.6,97.695,97.641,0.25]
[1643465961004,6.0,97.685,97.641,0.25]
[1643465961401,0.25,97.684,97.641,0.25]
[1643465961601,0.25,97.684,97.65,6.0]
[1643465962409,0.25,97.694,97.65,6.0]
[1643465962603,6.0,97.685,97.641,0.25]
[1643465962808,6.0,97.685,97.615,2.5079054]
[1643465962809,0.25,97.684,97.615,2.5079054]
[1643465963002,0.25,97.684,97.62,14.72]
[1643465966608,6.0,97.685,97.62,14.72]
[1643465966808,24.6,97.695,97.621,36.57137005]
[1643465967007,15.369,97.71,97.621,36.57137005]
[1643465967307,6.0,97.685,97.622,104.55769336]
[1643465967507,6.0,97.7,97.622,2.75769336]
[1643465967707,6.0,97.7,97.623,25.49539336]
[1643465967909,0.25,97.709,97.623,25.49539336]
[1643465967910,6.0,97.703,97.624,0.25]
[1643465968111,6.0,97.704,97.624,2.75769336]
[1643465968309,0.25,97.702,97.625,2.50769336]
[1643465968709,0.25,97.702,97.626,0.25]
[1643465968910,6.25,97.702,97.64,14.72]
[1643465969112,6.0,97.692,97.64,14.72]
[1643465969313,6.0,97.692,97.641,0.25]
[1643465969713,6.0,97.703,97.641,0.25]
[1643465970617,6.0,97.704,97.641,0.25]
[1643465971013,0.25,97.703,97.641,0.25]
[1643465971214,0.25,97.703,97.642,2.50769336]
[1643465971413,1.42150426,97.723,97.65,6.0]
[1643465971614,24.06050426,97.732,97.66,14.72]
[1643465971816,0.25,97.722,97.661,0.25]
[1643465972015,0.25,97.722,97.661,2.75769336]
[1643465972215,23.81050426,97.732,97.67,6.0]
[1643465972414,6.0,97.722,97.671,6.0]
[1643465972617,6.0,97.721,97.66,14.72]
[1643465973221,6.0,97.722,97.661,0.25]
[1643465973820,2.83393934,97.762,97.661,0.25]
[1643465973821,1.42150426,97.741,97.662,2.50769336]
[1643465974018,1.42150426,97.741,97.672,6.0]
[1643465974218,1.42150426,97.754,97.68,14.72]
[1643465974419,1.42150426,97.754,97.68,27.39]
[1643465974718,1.42150426,97.765,97.691,41.98668496]
[1643465974917,1.42150426,97.767,97.7,14.72]
[1643465975144,1.42150426,97.768,97.7,14.72]
[1643465975320,1.42150426,97.774,97.701,0.25]
[1643465975721,23.9837,97.788,97.701,0.25]
[1643465975722,0.25,97.773,97.702,2.50769336]
[1643465976118,1.42150426,97.778,97.703,0.25]
[1643465976320,6.0,97.768,97.703,0.25]
[1643465976621,6.0,97.771,97.703,0.25]
[1643465976919,6.0,97.771,97.7,14.72]
[1643465977118,6.0,97.766,97.7,14.72]
[1643465977319,7.42150426,97.766,97.7,14.72]
[1643465977618,1.67150426,97.765,97.7,14.72]
[1643465977819,0.25,97.765,97.701,0.25]
[1643465978018,6.0,97.755,97.701,0.25]
[1643465978423,0.25,97.754,97.701,0.25]
[1643465979621,6.0,97.755,97.701,0.25]
[1643465980025,6.0,97.759,97.701,0.25]
[1643465981126,0.25,97.758,97.7,14.72]
[1643465981526,6.0,97.766,97.701,0.25]
[1643465981727,0.25,97.765,97.701,0.25]
[1643465982127,6.0,97.761,97.701,0.25]
[1643465982527,0.25,97.765,97.701,0.25]
[1643465982751,1.42150426,97.776,97.702,2.50769336]
[1643465982954,1.42150426,97.779,97.702,2.50769336]
[1643465983152,1.42150426,97.786,97.712,6.0]
[1643465983353,1.42150426,97.788,97.72,14.72]
[1643465983555,6.0,97.778,97.72,14.72]
[1643465983953,6.0,97.78,97.72,14.72]
[1643465984153,6.0,97.777,97.721,0.25]
[1643465984361,6.0,97.776,97.721,0.25]
[1643465984554,6.0,97.78,97.721,0.25]
[1643465985052,6.0,97.781,97.722,2.50769336]
[1643465985253,0.25,97.78,97.723,0.25]
[1643465985453,0.25,97.78,97.72,14.72]
[1643465985454,6.0,97.788,97.72,14.72]
[1643465985653,0.25,97.787,97.72,14.72]
[1643465986157,6.0,97.785,97.72,14.72]
[1643465986352,0.25,97.784,97.72,58.37125117]
[1643465986555,6.0,97.783,97.72,58.37125117]
[1643465986755,0.25,97.782,97.72,58.37125117]
[1643465987152,0.25,97.782,97.721,0.25]
[1643465987354,6.0,97.783,97.721,121.81801002]
[1643465987554,6.0,97.801,97.731,107.8]
[1643465987755,6.0,97.801,97.74,14.72]
[1643465987957,6.0,97.804,97.74,14.72]
[1643465988154,6.0,97.804,97.741,0.25]
[1643465988357,0.25,97.803,97.741,0.25]
[1643465988557,0.25,97.803,97.74,14.72]
[1643465988764,0.25,97.803,97.741,0.25]
[1643465989359,23.8463,97.806,97.74,14.72]
[1643465989558,6.0,97.796,97.741,0.25]
[1643465989757,0.25,97.795,97.741,0.25]
[1643465990558,6.0,97.796,97.741,0.25]
[1643465990759,6.0,97.796,97.742,2.50769336]
[1643465990961,6.0,97.814,97.742,2.50769336]
[1643465991159,6.0,97.814,97.743,0.25]
[1643465991365,0.25,97.813,97.743,0.25]
[1643465991561,0.25,97.813,97.752,6.0]
[1643465991759,0.25,97.813,97.753,0.25]
[1643465992360,0.25,97.825,97.753,0.25]
[1643465993162,6.0,97.816,97.751,0.25]
[1643465993365,0.25,97.815,97.751,0.25]
[1643465993965,6.0,97.816,97.751,0.25]
[1643465994263,6.0,97.816,97.75,6.0]
[1643465994463,6.0,97.816,97.751,0.25]
[1643465999172,0.1085044,97.904,97.89,14.72]
[1643465999770,0.1085044,97.904,97.891,2.75769336]
[1643466000167,0.1085044,97.904,97.89,14.72]
[1643466000567,0.1085044,97.904,97.891,0.25]
[1643466000767,0.1085044,97.904,97.89,14.72]
[1643466001468,0.1085044,97.904,97.87,14.72]
[1643466002468,0.1085044,97.904,97.833,17.26031666]
[1643466002669,0.1085044,97.904,97.81,14.72]
[1643466002868,2.95669142,97.903,97.79,14.72]
[1643466003069,6.0,97.893,97.79,14.72]
[1643466003268,0.25,97.892,97.79,14.72]
[1643466003469,0.25,97.892,97.791,43.63636343]
[1643466003774,0.25,97.892,97.791,46.14405679]
[1643466003968,0.25,97.892,97.801,6.0]
[1643466004169,0.25,97.892,97.81,14.72]
[1643466004770,15.339,97.9,97.81,14.72]
[1643466004970,0.1085044,97.904,97.821,45.95173891]
[1643466005372,0.1085044,97.904,97.822,0.25]
[1643466006977,0.1085044,97.904,97.821,45.95173891]
[1643466007173,0.1085044,97.904,97.82,14.72]
[1643466007377,15.338,97.9,97.821,0.25]
[1643466007574,6.0,97.89,97.821,0.25]
[1643466007774,0.25,97.889,97.821,0.25]
[1643466008075,0.25,97.889,97.82,14.72]
[1643466009778,6.0,97.89,97.82,14.72]
[1643466010980,6.0,97.89,97.821,0.25]
[1643466011180,0.25,97.889,97.821,0.25]
[1643466011781,6.0,97.89,97.821,0.25]
[1643466013185,0.25,97.889,97.821,0.25]
[1643466013686,0.25,97.889,97.82,14.72]
[1643466015497,0.25,97.889,97.8,14.72]
[1643466015695,46.2447,97.889,97.79,14.72]
[1643466016093,6.0,97.879,97.79,14.72]
[1643466016295,0.25,97.878,97.752,49.21875199]
[1643466016510,6.25,97.878,97.762,6.0]
[1643466016905,6.25,97.878,97.77,6.0]
[1643466017108,6.25,97.878,97.78,14.72]
[1643466017309,24.4153,97.877,97.781,0.25]
[1643466017708,24.4153,97.877,97.78,14.72]
[1643466017909,2.95669142,97.876,97.78,14.72]
[1643466018110,15.344,97.86,97.78,14.72]
[1643466018607,15.344,97.86,97.742,2.50800877]
[1643466018808,24.5408,97.859,97.76,14.72]
[1643466019008,1.42150426,97.878,97.77,6.0]
[1643466019210,24.0602,97.888,97.781,36.45413152]
[1643466019410,6.0,97.868,97.781,36.45413152]
[1643466019609,6.0,97.878,97.791,6.0]
[1643466019812,6.0,97.878,97.781,36.45413152]
[1643466020008,6.0,97.878,97.782,0.25]
[1643466020610,0.25,97.877,97.78,14.72]
[1643466021008,6.0,97.87,97.78,14.72]
[1643466021410,0.25,97.869,97.781,0.25]
[1643466021609,6.25,97.869,97.781,43.9851819]
[1643466021808,24.2291,97.868,97.78,14.72]
[1643466022010,6.0,97.858,97.78,14.72]
[1643466022414,0.25,97.857,97.781,0.25]
[1643466022713,6.0,97.858,97.781,47.14452132]
[1643466022910,6.0,97.858,97.79,6.0]
[1643466023113,6.0,97.858,97.8,14.72]
[1643466023312,6.0,97.858,97.801,0.25]
[1643466024317,0.25,97.857,97.801,0.25]
[1643466024515,6.0,97.858,97.801,0.25]
[1643466024918,6.0,97.858,97.802,2.49997165]
[1643466025315,6.0,97.858,97.803,0.25]
[1643466026418,6.0,97.858,97.801,0.25]
[1643466027220,0.25,97.857,97.801,0.25]
[1643466028423,6.0,97.858,97.801,0.25]
[1643466028621,0.25,97.857,97.801,0.25]
[1643466029323,0.25,97.857,97.78,14.72]
[1643466029522,1.42150426,97.846,97.78,14.72]
[1643466029721,1.42150426,97.845,97.78,14.72]
[1643466029924,6.0,97.836,97.78,14.72]
[1643466030124,6.0,97.835,97.78,60.98521843]
[1643466030622,0.25,97.834,97.78,14.72]
[1643466030924,0.25,97.834,97.781,0.25]
[1643466031423,0.25,97.834,97.748,1.38300638]
[1643466031724,23.9395,97.837,97.76,14.72]
[1643466032127,6.0,97.827,97.76,14.72]
[1643466032323,0.25,97.826,97.76,14.72]
[1643466032929,0.25,97.826,97.761,0.25]
[1643466034929,6.0,97.827,97.761,0.25]
[1643466035429,0.25,97.826,97.761,0.25]
[1643466035629,6.0,97.817,97.761,0.25]
[1643466035829,0.25,97.816,97.751,6.0]
[1643466036229,0.25,97.816,97.752,0.25]
[1643466036433,0.25,97.816,97.752,43.42031635]
[1643466037035,6.0,97.81,97.752,43.42031635]
[1643466037440,0.25,97.809,97.752,43.17031635]
[1643466037841,0.25,97.809,97.751,6.0]
[1643466038534,6.0,97.821,97.751,6.0]
[1643466038734,6.0,97.821,97.752,0.25]
[1643466038935,6.0,97.813,97.752,0.25]
[1643466039434,0.25,97.812,97.752,0.25]
[1643466040035,0.25,97.812,97.74,14.72]
[1643466040243,0.25,97.812,97.71,16.10300638]
[1643466040439,1.67150426,97.812,97.71,14.72]
[1643466040637,6.0,97.802,97.71,14.72]
[1643466040838,47.8381,97.801,97.71,14.72]
[1643466041037,6.0,97.791,97.71,14.72]
[1643466041445,0.25,97.79,97.71,14.72]
[1643466041838,0.25,97.79,97.711,0.25]
[1643466042339,0.25,97.79,97.692,0.25]
[1643466042538,6.25,97.79,97.692,0.25]
[1643466042742,22.7077,97.789,97.692,0.25]
[1643466043140,6.0,97.779,97.692,0.25]
[1643466043342,0.25,97.778,97.692,0.25]
[1643466044041,0.25,97.778,97.691,24.3553]
[1643466044241,0.25,97.778,97.692,101.8]
[1643466044442,6.0,97.779,97.692,101.8]
[1643466044839,6.0,97.779,97.691,24.3553]
[1643466045642,0.25,97.778,97.691,24.3553]
[1643466046041,0.25,97.778,97.702,32.93312106]
[1643466046241,0.25,97.778,97.703,0.25]
[1643466047543,0.25,97.778,97.712,6.0]
[1643466047943,0.25,97.778,97.702,38.56864002]
[1643466047944,0.25,97.778,97.702,0.25]
[1643466048149,0.25,97.778,97.662,1.38300638]
[1643466048342,0.25,97.778,97.653,24.1331]
[1643466048343,0.25,97.778,97.66,14.72]
[1643466048951,0.25,97.778,97.661,44.79705141]
[1643466049247,0.25,97.778,97.662,0.25]
[1643466050047,15.36,97.77,97.662,0.25]
[1643466050273,0.25,97.769,97.662,0.25]
[1643466050480,6.0,97.76,97.662,0.25]
[1643466050677,22.9929,97.759,97.662,0.25]
[1643466050872,26.19959142,97.759,97.66,14.72]
[1643466051073,6.0,97.749,97.66,14.72]
[1643466051272,0.25,97.748,97.64,14.72]
[1643466051672,6.0,97.74,97.64,14.72]
[1643466051875,0.25,97.739,97.641,36.49450314]
[1643466052072,24.2322,97.739,97.641,59.15600314]
[1643466052274,24.2322,97.739,97.642,0.25]
[1643466052471,6.0,97.729,97.642,0.25]
[1643466052873,0.25,97.728,97.642,0.25]
[1643466054072,6.25,97.728,97.642,0.25]
[1643466054472,24.0876,97.727,97.642,0.25]
[1643466054873,6.0,97.717,97.642,0.25]
[1643466055275,0.25,97.716,97.642,0.25]
[1643466055475,6.0,97.717,97.642,0.25]
[1643466055674,0.25,97.716,97.642,0.25]
[1643466055879,6.0,97.717,97.642,0.25]
[1643466057576,0.25,97.716,97.642,0.25]
[1643466059379,6.0,97.717,97.642,0.25]
[1643466061182,0.25,97.716,97.642,0.25]
[1643466062483,6.0,97.717,97.642,0.25]
[1643466063088,15.36,97.76,97.651,6.0]
[1643466063284,15.36,97.76,97.66,14.72]
[1643466063487,23.7822,97.767,97.66,14.72]
[1643466063683,23.7822,97.767,97.67,6.0]
[1643466063883,23.7822,97.767,97.68,14.72]
[1643466064083,15.4291,97.782,97.69,6.0]
[1643466064285,15.4291,97.782,97.701,44.51370128]
[1643466064484,24.8883,97.798,97.702,101.8]
[1643466064685,24.8883,97.798,97.711,6.0]
[1643466064885,24.8883,97.798,97.712,6.25]
[1643466065185,24.8883,97.798,97.72,6.0]
[1643466065384,0.25,97.797,97.721,0.25]
[1643466065787,24.8883,97.798,97.723,6.0]
[1643466066187,24.8883,97.798,97.724,0.25]
[1643466066598,24.8883,97.798,97.731,45.90967061]
[1643466066787,1.60236582,97.81,97.732,0.25]
[1643466066987,1.60236582,97.81,97.741,6.0]
[1643466067288,6.0,97.8,97.742,0.25]
[1643466067787,0.25,97.799,97.742,0.25]
[1643466068689,6.0,97.8,97.731,45.90967061]
[1643466068690,6.0,97.8,97.732,0.25]
[1643466068888,6.0,97.8,97.741,6.0]
[1643466069290,6.0,97.8,97.742,0.25]
[1643466070289,6.0,97.8,97.732,0.25]
[1643466073391,6.0,97.8,97.732,102.05]
[1643466075793,6.0,97.8,97.732,101.8]
[1643466077594,6.0,97.8,97.73,14.72]
[1643466077795,6.0,97.8,97.7,14.72]
[1643466077994,6.0,97.8,97.66,207.867]
[1643466077995,2.95669142,97.799,97.686,1.38300638]
[1643466078196,2.95669142,97.799,97.671,1.38300638]
[1643466078395,6.0,97.789,97.67,14.72]
[1643466078595,46.4926,97.788,97.671,45.22524446]
[1643466078795,46.7426,97.788,97.671,45.22524446]
[1643466078997,6.0,97.778,97.671,45.22524446]
[1643466079196,6.0,97.778,97.672,0.25]
[1643466079397,6.0,97.77,97.672,0.25]
[1643466079596,6.0,97.77,97.672,2.7611033]
[1643466079797,23.5126,97.769,97.672,104.5611033]
[1643466079998,6.0,97.759,97.673,2.5111033]
[1643466080400,6.0,97.759,97.674,0.25]
[1643466080602,6.0,97.759,97.674,1.63300638]
[1643466080803,6.0,97.778,97.675,2.5111033]
[1643466081002,6.0,97.778,97.676,101.8]
[1643466081204,15.1739,97.821,97.676,101.8]
[1643466081205,0.00150426,97.822,97.691,101.8]
[1643466081402,0.00393934,97.852,97.78,2.5111033]
[1643466081606,76.3793,97.935,97.88,9.38500519]
[1643466081803,70.9156,97.941,97.88,9.38500519]
[1643466082402,0.3214198,97.951,97.88,9.38500519]
[1643466082604,0.3214198,97.951,97.88,24.10500519]
[1643466082802,0.3214198,97.951,97.881,38.29055954]
[1643466083505,0.3214198,97.951,97.88,24.10500519]
[1643466083703,0.3214198,97.951,97.88,9.38500519]
[1643466084702,15.333,97.94,97.88,9.38500519]
[1643466085105,6.0,97.93,97.88,9.38500519]
[1643466085304,0.25,97.929,97.89,14.72]
[1643466088107,6.0,97.93,97.89,14.72]
[1643466088306,0.25,97.929,97.89,14.72]
[1643466088706,0.25,97.929,97.89,198.73]
[1643466088910,0.25,97.929,97.89,231.78674712]
[1643466089713,0.25,97.929,97.89,198.73]
[1643466090418,0.25,97.939,97.89,198.73]
[1643466090616,0.25,97.939,97.891,0.25]
[1643466090816,0.25,97.939,97.89,198.73]
[1643466091215,6.0,97.93,97.89,198.73]
[1643466091436,0.25,97.929,97.89,198.73]
[1643466096344,0.25,97.939,97.89,198.73]
[1643466098847,0.25,97.939,97.89,14.72]
[1643466103654,15.335,97.93,97.89,14.72]
[1643466103855,0.25,97.929,97.89,14.72]
[1643466104055,6.0,97.92,97.89,14.72]
[1643466104254,0.25,97.919,97.89,14.72]
[1643466106055,6.0,97.939,97.89,14.72]
[1643466106355,0.25,97.938,97.89,14.72]